Cogmind - Beta 9.1 @@@ ROGUE MODE // 2019.11.05 @ 01:43:44 Player: MrPainting Result: Self-destructed Performance ------------- Evolutions (1) 500 Regions Visited (2) 400 Robots Destroyed (5) 25 Value Destroyed (146) 146 Prototype IDs (0) 0 Alien Tech Used (0) 0 Bonus (200) 200 TOTAL SCORE: 1271 Bonus ------- Pacifist 200 Cogmind --------- Core Integrity 270/400 Matter 300/300 Energy 250/250 System Corruption 0% Temperature Cool (0) Location -9/Materials Parts ------- Power (1) Ion Engine Propulsion (3) Aluminum Leg Utility (3) Improved Heat Sink Weapon (2) Inventory (4) Large Storage Unit Large Storage Unit Medium Matter Pod (24) Peak State ------------ Power Ion Engine Propulsion Aluminum Leg Aluminum Leg Flight Unit Utility Improved Heat Sink Weight Redist. System Core Shielding Weapon Light Assault Rifle Light Assault Rifle Inventory Large Storage Unit Large Storage Unit Medium Matter Pod Particle Cannon [Rating: 12] Favorites ----------- Power Ion Engine Engine Ion Engine Propulsion Aluminum Leg Leg Aluminum Leg Flight Unit Flight Unit Utility Core Shielding Device Weight Redist. System Storage Medium Storage Unit Protection Core Shielding Weapon Light Assault Rifle Energy Cannon Particle Cannon Ballistic Gun Light Assault Rifle Build | -11 -10 -9 ------- Run | Scr Mat Mat Slots Evolved 2 | . . 2 Power . | . . . Propulsion 1 | . . 1 Utility 1 | . . 1 Weapon . | . . . Parts Attached 11 | 4 . 7 Power 1 | . . 1 Engine 1 | . . 1 Core . | . . . Reactor . | . . . Propulsion 3 | 2 . 1 Treads . | . . . Leg 2 | 2 . . Wheel . | . . . Hover . | . . . Flight 1 | . . 1 Utility 4 | . . 4 Device 2 | . . 2 Storage 1 | . . 1 Processor . | . . . Hackware . | . . . Protection 1 | . . 1 Artifact . | . . . Weapon 3 | 2 . 1 Energy Gun . | . . . Energy Cannon 1 | . . 1 Ballistic Gun 2 | 2 . . Ballistic Cannon . | . . . Launcher . | . . . Special Weapon . | . . . Impact Weapon . | . . . Slashing Weapon . | . . . Piercing Weapon . | . . . Special Melee Weapon . | . . . Unidentified Prototypes . | . . . Parts Lost 7 | . . 7 Power . | . . . Propulsion 2 | . . 2 Utility 2 | . . 2 Weapon 3 | . . 3 Highest Loss Streak 7 | . . 7 Average Slot Usage (%) 75 | . 57 78 Engine 8 | . . 9 Leg 22 | . 28 22 Flight 5 | . . 6 Device 9 | . . 11 Storage 1 | . . 1 Protection 6 | . . 7 Energy Cannon 1 | . . 1 Ballistic Gun 19 | . 28 18 Naked Turns . | . . . Heaviest Build 16 | 2 2 16 Greatest Support 20 | 20 3 20 Greatest Overweight (x) 1 | . . 1 Average Overweight (x) . | . . . Largest Inventory Capacity 8 | 4 4 8 Average Capacity 4 | 4 4 4 Most Carried 4 | 1 3 4 Average Carried 2 | . 2 3 Final Capacity 4 | 4 4 4 Final Carried 3 | 1 3 3 Class Distribution -------------------- 100% | Mutant Dominant Class ---------------- Mutant | -10/Materials Mutant | -9/Materials Resources | -11 -10 -9 ----------- Run | Scr Mat Mat Matter Collected 348 | 237 . 111 Remotely . | . . . Salvage Created 178 | . . 178 Parts 9 | . . 9 Haulers Intercepted . | . . . Recyclers Shooed . | . . . Parts Field Recycled . | . . . Retrieved Matter . | . . . Parts Self-Destructed . | . . . Prevented . | . . . Kills | -11 -10 -9 ------- Run | Scr Mat Mat Combat Hostiles Destroyed 5 | . . 5 Guns 5 | . . 5 Classes Destroyed 3 | . . 3 Swarmer 2 | . . 2 Grunt 2 | . . 2 Sentry 1 | . . 1 Best Kill Streak 2 | . . 2 Combat Bots Only 2 | . . 2 Max Kills in Single Turn 1 | . . 1 Gunslinging . | . . . Exploded . | . . . Melee . | . . . Uniques/NPCs Destroyed . | . . . Combat | -11 -10 -9 -------- Run | Scr Mat Mat Damage Taken 670 | . . 670 Core 130 | . . 130 Absorbed by Shields . | . . . Core Remaining (%) 100 | 100 100 . Volleys Fired 29 | . . 29 Largest 2 | . . 2 Hottest 40 | . . 40 Shots Fired 58 | . . 58 Gun 58 | . . 58 Cannon . | . . . Launcher . | . . . Special . | . . . Kinetic 58 | . . 58 Thermal . | . . . Explosive . | . . . Electromagnetic . | . . . Robot Hit Streak 14 | . . 14 Robot Miss Streak 2 | . . 2 Penetration Max . | . . . Secondary Targets . | . . . Shots Hit Robots 41 | . . 41 Core Hits 20 | . . 20 Critical Hits . | . . . Critical Kills . | . . . Critical Parts Destroyed . | . . . Melee Attacks . | . . . Impact . | . . . Slashing . | . . . Piercing . | . . . Sneak Attacks . | . . . Combat Hostiles . | . . . Follow-up Attacks . | . . . Damage Inflicted 329 | . . 329 Guns 325 | . . 325 Cannons . | . . . Explosions . | . . . Melee . | . . . Ramming 4 | . . 4 Kinetic 325 | . . 325 Thermal . | . . . Explosive . | . . . Electromagnetic . | . . . Impact . | . . . Slashing . | . . . Piercing . | . . . Highest Corruption . | . . . Average Corruption . | . . . Corruption Purged . | . . . Overload Shots . | . . . Overflow Damage . | . . . Projectiles . | . . . Explosions . | . . . Melee . | . . . Knockbacks . | . . . Impact . | . . . Kinetic . | . . . Secondary . | . . . Self-Inflicted Damage 1 | . . 1 Shots . | . . . Rammed 1 | . . 1 Targets Rammed 2 | . . 2 Kicked 1 | . . 1 Crushed . | . . . Highest Temperature 12 | . . 12 Average Temperature 6 | . . 6 Received Heat Transfer 228 | . . 228 Siege Activations . | . . . Robots Corrupted . | . . . Combat Hostiles . | . . . Parts Fried . | . . . Impact Corruptions . | . . . Robots Melted . | . . . Combat Hostiles . | . . . Parts Melted . | . . . Heat Transferred . | . . . Parts Sabotaged . | . . . Parts Stolen . | . . . Parts Stripped . | . . . Power Chain Reactions . | . . . Missiles Intercepted . | . . . Alert | -11 -10 -9 ------- Run | Scr Mat Mat Peak Influence 150 | . . 150 Average Influence 43 | . . 61 Maximum Alert Level . | . . . Low Security (%) 100 | . . . Level 1 . | . . . Level 2 . | . . . Level 3 . | . . . Level 4 . | . . . Level 5 . | . . . High Security . | . . . Max Security . | . . . Squads Dispatched . | . . . Investigation . | . . . Extermination . | . . . Reinforcement . | . . . Assault . | . . . Garrison . | . . . Intercept . | . . . Construction Impeded . | . . . Haulers Reinforced . | . . . Stealth | -11 -10 -9 --------- Run | Scr Mat Mat Distress Signals 2 | . . 2 Communications Jammed . | . . . Distress Signals . | . . . Times Spotted 14 | . . 14 Peak Tracking Total 6 | . . 6 Tactical Retreats 2 | . . 2 Traps | -11 -10 -9 ------- Run | Scr Mat Mat Traps Triggered . | . . . Indirectly . | . . . Trap Hack Attempts . | . . . Triggered . | . . . Disarmed . | . . . Reprogrammed . | . . . Reused . | . . . Traps Extracted . | . . . Installed . | . . . Triggered . | . . . Machines | -11 -10 -9 ---------- Run | Scr Mat Mat Machines Disabled . | . . . Max in Single Turn . | . . . Machines Sabotaged . | . . . Garrisons Compromised . | . . . Overloaded Fab Kills . | . . . Fab Network Shutdowns . | . . . Hacking | -11 -10 -9 --------- Run | Scr Mat Mat Machines Accessed . | . . . Terminals . | . . . Fabricators . | . . . Repair Stations . | . . . Recycling Units . | . . . Scanalyzers . | . . . Garrison Access . | . . . Total Hacks . | . . . Successful . | . . . Failed . | . . . Catastrophic . | . . . Database Lockouts . | . . . Manual . | . . . Terminals . | . . . Fabricators . | . . . Repair Stations . | . . . Recycling Units . | . . . Scanalyzers . | . . . Garrison Access . | . . . Terminal Hacks . | . . . Fabricator Hacks . | . . . Repair Station Hacks . | . . . Recycling Unit Hacks . | . . . Scanalyzer . | . . . Garrison Access Hacks . | . . . Unauthorized Hacks . | . . . Terminals . | . . . Fabricators . | . . . Repair Stations . | . . . Recycling Units . | . . . Scanalyzers . | . . . Garrison Access . | . . . Data Cores Recovered . | . . . Used . | . . . Hacking Detections . | . . . Full Trace Events . | . . . Feedback Events . | . . . Feedback Blocked . | . . . Robot Schematics Acquired . | . . . Robots Built . | . . . Matter . | . . . Time . | . . . Total Robot Build Rating . | . . . Part Schematics Acquired . | . . . Parts Built . | . . . Matter . | . . . Time . | . . . Total Part Build Rating . | . . . Parts Repaired . | . . . Time . | . . . Parts Recycled . | . . . Recycled Matter . | . . . Retrieved Matter . | . . . Retrieved Components . | . . . Parts Scanalyzed . | . . . Part Schematics Acquired . | . . . Parts Damaged . | . . . Bothacking | -11 -10 -9 ------------ Run | Scr Mat Mat Used RIF Installer . | . . . Robots Hacked . | . . . Non-combat . | . . . Combat . | . . . Robot Hacks Applied . | . . . Relay Couplers Released . | . . . Robots Rewired . | . . . Allies Hacked . | . . . Hacks Repelled . | . . . Allies | -11 -10 -9 -------- Run | Scr Mat Mat Total Allies . | . . . Largest Group . | . . . Highest-Rated Group . | . . . Highest-Rated Ally . | . . . Total Orders . | . . . Ally Attacks . | . . . Total Damage . | . . . Kills . | . . . Allies Corrupted . | . . . Allies Melted . | . . . Intel | -11 -10 -9 ------- Run | Scr Mat Mat Robot Analysis Total . | . . . Derelict Logs Recovered . | . . . Drone Launches . | . . . Drone Recoveries . | . . . Exploration | -11 -10 -9 ------------- Run | Scr Mat Mat Turns Passed 260 | 49 30 181 Spaces Moved 219 | 40 55 124 Core 138 | 9 55 74 Treads . | . . . Legs 50 | 31 . 19 Wheels . | . . . Hover . | . . . Flight 31 | . . 31 Fastest Speed 50 | 50 50 50 Average Speed 70 | 104 50 68 Slowest Speed 120 | 120 50 120 Overloaded Moves . | . . . Propulsion Burnouts . | . . . Robots Hopped . | . . . Cave-ins Triggered . | . . . Exploration Rate (%) 13 | 3 20 18 Regions Visited 2 Branch Regions . Pre-discovered Areas . | . . . Known Exits Taken . | . . . Unknown Exits Taken 2 | 1 1 . Scrap Searched . | . . . Spaces Dug . | . . . Terrain Destroyed . | . . . Melee . | . . . Projectile . | . . . AOE . | . . . Actions | -11 -10 -9 --------- Run | Scr Mat Mat Total 272 | 45 56 171 Wait 4 | . . 4 Move 218 | 40 54 124 Hop . | . . . Pick Up 6 | 1 2 3 Fast Attach 9 | 4 . 5 Attach 2 | . . 2 Detach . | . . . Swap . | . . . Drop 2 | . . 2 Fire 29 | . . 29 Melee . | . . . Ram . | . . . Kick 2 | . . 2 Crush . | . . . Escape Stasis . | . . . Rewire . | . . . Trap . | . . . Miscellaneous . | . . . Route ------- -11/Scrapyard -10/Materials -9/Materials History --------- Turn | Location | Event 8 | -11/Scrapyard | Discovered new exit (range 15) 50 | -11/Scrapyard | Entered Materials 72 | -10/Materials | Discovered new exit (range 16) 80 | -10/Materials | Entered another Materials area 80 | -9/Materials | Evolved 2 slots: Propulsion x1, Utility x1 261 | -9/Materials | Self-destructed Last Messages --------------- 00203_ R-06 Scavenger collects Lgt. Nuclear Core. 00203_ Acquired Imp. Heat Sink. 00206_ Acquired 45 matter. 00206_ Acquired 56 matter. 00208_ R-06 Scavenger collects Sml. Laser. 00221_ Y-45 Defender destroyed. 00225_ Door malfunctions. 00229_ Weight Redist. System destroyed. 00232_ Lgt. Assault Rifle destroyed. 00238_ Core Shielding destroyed. 00241_ R-06 Scavenger collects Lgt. Armor Plating. 00243_ U-05 Engineer repairs door. 00243_ R-06 Scavenger collects Hvy. Assault Rifle. 00244_ Flight Unit destroyed. 00245_ Slammed into R-06 Scavenger. 00245_ Destabilizing: Short circuit. 00245_ Aluminum Leg permanently disabled. 00256_ Particle Cannon destroyed. 00256_ Kicked K-01 Serf out of the way. 00260_ Aluminum Leg destroyed. Map ----- +----------------------------------------------------+ | """"" #???????????????????????????????????????? | | """"" ########################????????????????? | | """ + # #??????????????#?? | | ######## * ] # #????????????? #?? | | #??????# # #######????? #?? | | #??????# ! # # ##### #? | | #??????# # # ? | | #??????####/#### / | | ""T"" #???????# ## # ? | | """"" #???????# ## # ##### #? | | #???????# ## ## ##??????????? | | #???????# ! ##+######### #???????????? | | ####### #???????# ## #?# ????# #???????????? | | #######+#???????### #### #?# ???# #???????????? | | #?????##### #??# #?# ???# #???????????? | | #????##!!## #### ### ???# #???????????? | | ] #????# % w## =???# #???????????? | | #????# ## ] ??# #???????????? | | #????# #? ??# #???????????? | | #????#! ###### #?? ?## ##??????????? | | #????##!!#????# ####+## #??????????? | | #?????######### #??????????? | | #???????# % #??????????? | | #########???????????### #??????????? | | ????????????????????#####s####### #??????????? | | ????????????????????# """@""" #?#######??????????? | | ????????????????????# """ """ #??????????????????? | | ????????????????????# """ """ #??????????????????? | | ????????????????????# #??????????????????? | | ????????????????????# ! #??????????????????? | | ????????????????????# #??????????????????? | | ????????????????????# "T" #??????????????????? | | ????????????????????# #??????????????????? | | ????????????????????###########??????????????????? | | ?????????????????????????????????????????????????? | | ?????????????????????????????????????????????????? | | ?????????????????????????????????????????????????? | | ?????????????????????????????????????????????????? | | ?????????????????????????????????????????????????? | | ?????????????????????????????????????????????????? | | ?????????????????????????????????????????????????? | | ?????????????????????????????????????????????????? | | | | | | | | | | | | | | | | | +----------------------------------------------------+ Best States ------------- Heat Dissipation 42 Energy Generation 10 Energy Capacity 250 Matter Stores 300 Matter Capacity 300 Sight Range 16 Terrain Scan Density 10 Additional Mass Support 6 Core Shielding 20 Evasion (%) 58 Item Schematics ----------------- None Robot Schematics ------------------ None Fabricated ------------ Nothing Alien Tech Used ----------------- None Achievements -------------- None Challenges ------------ None Game ------ Seed CombatStorageBuckler Manual? 0 Play Time 00:05:47 Cumulative 110.3 hours Start 2019.11.05 @ 01:40:22 End 2019.11.05 @ 01:43:44 Sessions 1 Manual Loads 0 Difficulty Rogue Special Mode None Game No. 191 Rogue 191 Adventurer 0 Explorer 0 Win Type - Total 0 Types 0/0/0/0/0/0/0 Lore% 33 Gallery% 48 Achievement% 34 Wizard Run 0 Options --------- ASCII 0 Keyboard 0 Movement Mouse Keybinds 0 Fullscreen 1 Font 18/SmallcapsGlow Map View 76x50 Tactical HUD 1 Map Filters NONE Filters NONE Steam 1 RUN: 67b83fe5-5819-4466-9094-ed0d032c8e6c